bitfinex/quotes_ETHUSD_20260131
["timestamp","ask_amount","ask_price","bid_price","bid_amount"]
[1769885585806,0.01276188,2387.9,2385.6,1.047941]
[1769885585983,0.01276188,2387.5,2385.7,0.1024]
[1769885586186,0.01276188,2387.5,2385.8,1.04786654]
[1769885586513,0.01276188,2387.5,2384.8,4.19311982]
[1769885586514,0.01276188,2386.3,2384.5,4.19361255]
[1769885586717,0.89076188,2386.8,2385.5,1.04797823]
[1769885586948,0.89076188,2386.8,2383.9,4.19474989]
[1769885586949,0.878,2386.8,2384.7,4.19324877]
[1769885587219,0.878,2386.8,2384.2,4.19413015]
[1769885587220,0.01276188,2386.3,2385.1,1.04815387]
[1769885587429,0.01276188,2386.9,2385.5,1.04798238]
[1769885587728,0.89076188,2387.4,2384.2,4.19425683]
[1769885587729,0.01276188,2385.9,2384.6,4.1935606]
[1769885587896,0.01276188,2385.8,2384.6,4.1935606]
[1769885588095,0.01276188,2385.8,2383.4,1.0489217]
[1769885588096,0.01276188,2385.3,2383.4,1.0489217]
[1769885588297,0.01276188,2385.5,2383.3,4.19577986]
[1769885588622,0.01276188,2386.1,2383.3,4.19577986]
[1769885588831,0.01276188,2385.4,2383.4,0.1024]
[1769885589127,0.01276188,2385.5,2383.4,0.1024]
[1769885589128,0.01276188,2385.3,2383.4,0.1024]
[1769885589333,0.01276188,2385.1,2383.4,0.1024]
[1769885589622,0.01276188,2384.5,2383.2,1.04900973]
[1769885589834,0.01276188,2384.1,2383.2,1.04900973]
[1769885590003,0.01276188,2384.0,2383.2,1.04900973]
[1769885590191,0.01276188,2384.0,2383.0,0.0824617]
[1769885590192,0.01276188,2383.8,2383.0,4.27871456]
[1769885590534,0.01276188,2383.4,2381.3,4.19929157]
[1769885590710,0.01276188,2383.0,2381.8,4.19846512]
[1769885590910,0.01276188,2383.4,2381.3,12.69641374]
[1769885590911,0.01276188,2383.9,2382.4,1.04935945]
[1769885591122,0.01276188,2383.9,2381.3,16.8957711]
[1769885591123,0.00104752,2383.3,2381.3,12.69641374]
[1769885591332,0.01276188,2383.7,2382.4,1.0493592]
[1769885591529,0.01276188,2383.8,2382.5,0.1024]
[1769885591833,0.01276188,2383.8,2382.1,4.19744795]
[1769885591834,0.01276188,2382.3,2381.1,4.19966527]
[1769885592019,0.01276188,2382.3,2380.6,2.04631761]
[1769885592020,0.01276188,2381.9,2380.8,4.20021288]
[1769885592228,0.01276188,2382.7,2380.8,4.20021288]
[1769885592533,0.01276188,2382.4,2380.9,0.1024]
[1769885592702,0.01276188,2382.7,2380.9,0.1024]
[1769885592907,0.01276188,2383.6,2381.9,0.1024]
[1769885593329,0.01276188,2383.5,2381.9,0.1024]
[1769885593523,0.01276188,2383.3,2381.9,0.1024]
[1769885593830,0.01276188,2383.3,2380.8,4.20021288]
[1769885593831,0.01276188,2383.1,2380.8,4.20021288]
[1769885594029,0.01276188,2382.9,2380.8,4.20021288]
[1769885594336,0.01276188,2383.1,2381.3,2.06018884]
[1769885594640,0.01276188,2383.1,2381.0,1.049979]
[1769885594641,0.01276188,2383.6,2381.4,2.12652343]
[1769885594830,0.01276188,2384.5,2381.6,12.79881374]
[1769885595005,0.01276188,2383.7,2381.6,12.79881374]
[1769885595202,0.01276188,2383.8,2381.6,0.1024]
[1769885595434,0.01276188,2383.5,2381.6,12.79881374]
[1769885595737,0.01276188,2383.6,2381.6,12.79881374]
[1769885595738,0.01276188,2383.6,2381.7,0.1024]
[1769885595916,0.01276188,2383.6,2381.0,1.049979]
[1769885595917,0.01276188,2383.2,2381.0,1.049979]
[1769885596118,0.01276188,2383.3,2381.0,1.049979]
[1769885596330,0.01276188,2383.3,2381.3,0.1024]
[1769885596519,0.879,2383.8,2381.3,0.1024]
[1769885596520,0.01276188,2384.3,2381.6,12.69641374]
[1769885596712,0.01276188,2383.0,2381.7,0.1024]
[1769885596911,0.01276188,2383.1,2381.7,0.1024]
[1769885597109,0.01276188,2383.1,2380.3,4.2011302]
[1769885597110,0.01276188,2381.9,2379.8,12.69641374]
[1769885597315,0.0091593,2380.7,2379.0,1.0508617]
[1769885597539,0.01276188,2381.6,2379.0,13.74727544]
[1769885597725,0.01276188,2381.1,2379.0,13.74727544]
[1769885597924,0.01276188,2381.2,2379.0,13.74727544]
[1769885598138,0.01276188,2382.2,2379.8,12.79881374]
[1769885598139,0.01276188,2382.1,2379.8,12.79881374]
[1769885598321,0.01276188,2381.9,2379.8,12.79881374]
[1769885598518,0.01276188,2382.7,2380.2,12.79881374]
[1769885598843,0.01276188,2382.8,2380.7,12.79881374]
[1769885599138,0.01276188,2384.3,2381.1,12.79881374]
[1769885599326,0.01276188,2383.0,2381.4,0.1024]
[1769885599641,0.01276188,2383.5,2381.5,0.1024]
[1769885599642,0.01276188,2383.4,2381.5,0.1024]
[1769885599942,0.01276188,2383.1,2381.5,0.1024]
[1769885600234,0.01276188,2383.5,2381.5,0.1024]
[1769885600418,0.01276188,2383.4,2381.5,0.1024]
[1769885600621,0.01276188,2383.9,2381.5,0.1024]
[1769885600622,0.01276188,2384.1,2381.8,12.69641374]
[1769885600831,0.01276188,2383.9,2382.1,0.1024]
[1769885601139,0.01276188,2383.6,2382.1,0.1024]
[1769885601336,0.01276188,2383.3,2382.1,0.1024]
[1769885601514,0.01276188,2383.7,2382.1,0.1024]
[1769885601515,0.01276188,2384.0,2382.1,0.1024]
[1769885601839,0.01276188,2384.5,2382.1,0.1024]
[1769885602046,0.01276188,2384.6,2382.1,12.79881374]
[1769885602213,0.01276188,2384.6,2382.4,12.69641374]
[1769885602214,0.01276188,2384.2,2382.4,12.69641374]
[1769885602416,0.01276188,2384.6,2382.5,0.1024]
[1769885602611,0.01276188,2384.2,2382.7,0.1024]
[1769885602815,0.01276188,2384.1,2382.7,0.1024]
[1769885603322,0.01276188,2384.3,2382.7,0.1024]
[1769885603521,0.01276188,2383.9,2382.7,0.1024]
[1769885603722,0.00703188,2383.7,2382.6,1.0492739]
[1769885603923,0.01276188,2383.5,2382.6,1.0492739]
[1769885604135,0.01276188,2383.2,2382.6,1.0492739]
[1769885604322,0.01276188,2383.3,2382.6,1.0492739]
[1769885604323,0.01276188,2383.5,2382.6,1.0492739]
[1769885604641,0.01276188,2383.5,2382.2,4.19779677]
[1769885604642,0.01276188,2383.2,2382.2,1.04942814]
[1769885604816,1.06148335,2383.9,2381.1,0.0011]
[1769885604817,0.00104752,2382.7,2381.1,0.0011]
[1769885605019,0.01276188,2383.3,2382.2,1.04942269]
[1769885605244,0.01276188,2383.1,2382.2,1.04942269]
[1769885605444,0.01276188,2382.8,2382.2,1.04942269]
[1769885605742,0.01276188,2383.0,2382.2,1.04942293]
[1769885605947,0.01276188,2382.9,2382.2,1.04942293]
[1769885606242,0.01276188,2382.9,2382.0,4.19890035]
[1769885606243,0.01276188,2382.4,2382.0,0.0011]
[1769885606428,0.01276188,2382.1,2381.2,1.04989081]
[1769885606623,0.01276188,2382.1,2381.1,0.0011]
[1769885606836,0.01276188,2382.0,2381.1,0.0011]
[1769885607439,0.01276188,2381.7,2381.1,0.0011]
[1769885607635,0.01276188,2381.9,2381.1,0.0011]
[1769885607828,0.01276188,2381.8,2381.1,0.0011]
[1769885608026,0.01276188,2382.1,2381.1,0.0011]
[1769885608249,0.01276188,2382.0,2381.1,0.0011]
[1769885608455,0.01276188,2382.9,2381.1,0.0011]
[1769885608743,0.01276188,2382.8,2381.1,0.0011]
[1769885608916,0.01276188,2383.4,2381.1,0.0011]
[1769885608917,0.01276188,2383.5,2381.4,0.1024]
[1769885609120,0.01276188,2383.0,2381.4,12.79881374]
[1769885609646,0.01276188,2382.9,2381.4,12.79881374]
[1769885610039,0.01276188,2383.2,2381.4,12.79881374]
[1769885610223,0.01276188,2383.1,2381.4,12.79881374]
[1769885610549,0.01276188,2383.0,2381.5,1.04975855]
[1769885610728,0.01276188,2383.6,2381.5,1.04975855]
[1769885610729,0.01276188,2384.6,2382.7,12.69641374]
[1769885611052,0.01276188,2385.4,2381.8,0.28672]
[1769885611053,0.01276188,2383.7,2382.8,0.1024]
[1769885611229,0.01276188,2383.4,2381.8,12.69641374]
[1769885611550,0.01276188,2382.7,2381.9,0.1024]
[1769885611753,0.01276188,2382.6,2381.5,1.04975855]
[1769885612046,0.01276188,2382.8,2381.5,1.04975855]
[1769885612221,13.21599946,2385.8,2381.5,13.74617229]
[1769885612427,0.879,2384.8,2382.0,12.79881374]
[1769885612622,0.93850421,2386.3,2382.4,12.79881374]
[1769885612824,0.93850421,2386.3,2382.9,0.1024]
[1769885612825,14.09499946,2386.2,2382.9,0.1024]
[1769885613037,0.879,2386.2,2382.9,12.79881374]
[1769885613444,4.19141233,2386.5,2382.3,13.62653379]
[1769885613445,0.879,2386.3,2383.1,14.83616946]
[1769885614426,0.879,2386.3,2383.1,2.13975572]
[1769885614632,0.879,2386.3,2382.3,3.08306725]
[1769885614633,0.2335703,2385.7,2382.3,3.08306725]
[1769885614837,0.2335703,2385.7,2382.4,2.01870213]
[1769885615033,1.04773479,2386.1,2382.4,12.69641374]
[1769885615239,0.879,2386.0,2382.9,2.08227931]
[1769885615434,0.88,2386.0,2383.2,12.79881374]
[1769885616741,0.88,2386.0,2383.4,0.1024]
[1769885617268,0.879,2385.9,2383.4,0.1024]
[1769885617480,0.001,2386.0,2383.4,13.5849986]
[1769885617627,0.001,2386.0,2384.0,13.4825986]
[1769885617826,0.879,2385.9,2383.5,13.4825986]
[1769885618031,1.512,2387.5,2383.2,4.19586287]
[1769885618032,1.512,2387.5,2383.8,13.5849986]
[1769885618251,0.29424407,2389.0,2382.7,0.55219364]
[1769885618252,13.4322245,2386.3,2382.7,0.55219364]
[1769885618428,13.4322245,2385.4,2383.2,0.7967159]
[1769885618631,0.1024,2385.0,2382.3,0.0011]
[1769885618862,14.01341773,2384.9,2382.3,0.0011]
[1769885619177,13.56221181,2384.5,2381.3,4.19929425]
[1769885619329,13.56221181,2384.5,2382.1,1.04949398]
[1769885619832,0.2335703,2384.3,2382.1,1.04946648]
[1769885620156,0.2335703,2384.3,2381.1,4.20070981]
[1769885620157,0.2335703,2384.3,2382.0,1.04952671]
[1769885620356,13.56221181,2384.1,2381.7,1.04963119]
[1769885620538,13.56221181,2384.1,2382.0,1.04953287]
[1769885620768,13.56221181,2384.1,2381.4,1.04979064]
[1769885620769,13.66461181,2383.9,2381.4,1.04979064]
[1769885621071,13.66461181,2383.9,2381.1,0.0011]
[1769885621072,0.2335703,2383.4,2381.1,0.0011]
[1769885621305,1.36646118,2383.8,2378.4,6.29087784]
[1769885621306,13.32755251,2382.2,2378.4,6.29087784]
[1769885621584,0.1024,2383.1,2378.4,6.29087784]
[1769885621585,3.12760863,2382.1,2380.8,1.05005921]
[1769885621780,0.2335703,2382.0,2378.8,13.98844851]
[1769885622088,0.879,2382.1,2380.4,1.05022326]
[1769885622283,0.2335703,2382.0,2380.2,1.05032396]
[1769885622580,0.879,2382.1,2380.2,0.1024]
[1769885622879,0.879,2382.1,2380.4,0.1024]
[1769885623068,0.29499317,2383.1,2380.4,0.1024]
[1769885623372,2.22304831,2383.1,2380.4,14.09084851]
[1769885623582,0.22230483,2383.0,2380.4,14.09084851]
[1769885624696,0.22230483,2383.0,2380.8,14.09084851]
[1769885624976,0.879,2383.1,2381.0,14.09084851]
[1769885625152,0.879,2384.0,2381.0,14.09084851]
[1769885625582,0.59232489,2385.1,2381.2,13.98844851]
[1769885625798,0.59232489,2385.1,2382.1,0.1024]
[1769885625799,0.21043249,2385.0,2382.1,0.1024]
[1769885626605,0.21043249,2385.0,2381.2,13.98844851]
[1769885626804,1.04826198,2384.9,2381.8,14.09084851]
[1769885626969,0.21043249,2385.0,2381.8,14.09084851]
[1769885627300,1.25867048,2385.0,2382.6,0.01276188]
[1769885627499,1.25867048,2385.0,2382.4,0.01276188]
[1769885627702,1.25867048,2385.0,2382.7,13.98844851]
[1769885627703,0.60438675,2384.9,2382.7,13.98844851]
[1769885627871,0.879,2385.3,2382.8,14.09084851]
[1769885628574,0.001,2385.8,2384.1,0.1024]
[1769885628791,0.001,2385.8,2384.2,1.04856975]
[1769885628967,0.001,2385.8,2384.3,0.1024]
[1769885629170,0.879,2386.9,2384.3,14.09084851]
[1769885629634,0.879,2386.9,2384.6,0.01276188]
[1769885629777,0.879,2386.9,2384.7,13.98844851]
[1769885629980,0.879,2386.9,2384.8,14.09084851]
[1769885630187,0.879,2386.9,2384.9,13.98844851]
[1769885630397,0.879,2386.9,2385.0,0.1024]
[1769885630581,0.879,2386.9,2385.1,0.01276188]
[1769885630782,0.879,2386.9,2385.1,1.04817408]
[1769885630994,0.879,2386.9,2385.3,0.01276188]
[1769885631202,0.879,2386.9,2385.1,1.04817408]
[1769885631512,0.879,2386.9,2385.2,14.09084851]
[1769885631715,0.879,2386.9,2385.3,14.00121039]
[1769885632043,0.879,2386.9,2385.5,0.01276188]
[1769885632605,2.03320858,2389.8,2386.2,13.98844851]
[1769885632606,0.879,2389.0,2386.2,13.98844851]
[1769885632810,1.92547618,2389.0,2386.6,14.00121039]
[1769885633096,0.879,2389.0,2386.8,0.01276188]
[1769885633471,1.92546856,2389.0,2386.8,0.01276188]
[1769885633672,0.44902792,2390.0,2387.7,14.09084851]
[1769885633895,1.04519419,2391.9,2388.3,9.15853379]
[1769885634173,1.04519419,2391.9,2388.8,0.1024]
[1769885634491,0.879,2392.0,2389.2,14.09084851]
[1769885634695,0.879,2392.0,2389.3,1.04633156]
[1769885634892,0.879,2392.0,2389.4,13.98844851]
[1769885635099,0.879,2392.0,2389.5,14.09084851]
[1769885635605,1.92415811,2392.0,2389.5,13.98844851]
[1769885635807,1.92415811,2392.0,2389.3,1.04633156]
[1769885636015,13.32954251,2393.0,2389.3,1.04633156]
[1769885636016,1.0447574,2392.9,2389.4,13.98844851]
[1769885636172,1.0447574,2392.9,2389.5,0.1024]
[1769885636374,1.0447574,2392.9,2389.5,14.09084851]
[1769885636877,13.43094251,2392.9,2389.6,1.0462002]
[1769885637122,0.1024,2392.3,2388.7,13.98844851]
[1769885637422,0.1024,2392.3,2388.8,1.04653888]
[1769885637423,13.32854251,2391.3,2388.8,1.04653888]
[1769885637576,13.32854251,2391.3,2387.8,13.98844851]
[1769885637577,13.32854251,2390.5,2388.0,4.18760156]
[1769885637776,13.32854251,2390.5,2386.9,13.98844851]
[1769885637973,0.2335703,2390.4,2388.2,4.18722137]
[1769885638203,0.878,2390.5,2388.2,4.18723668]
[1769885638399,0.878,2390.5,2388.6,1.04661775]
[1769885638608,0.878,2390.5,2389.0,4.18582354]
[1769885638912,0.878,2390.5,2388.0,13.98844851]
[1769885639206,0.878,2390.5,2387.7,4.18796519]
[1769885639207,0.878,2390.5,2388.6,13.98844851]
[1769885639417,0.878,2390.5,2389.0,14.09084851]
[1769885639628,0.878,2390.5,2389.0,13.98844851]
[1769885640027,0.878,2390.5,2389.2,13.98844851]
[1769885640234,1.92423902,2391.8,2388.5,13.98844851]
[1769885640404,1.92423902,2391.8,2388.6,14.09084851]
[1769885640603,1.92423902,2391.8,2387.9,2.05895796]
[1769885640604,13.43094251,2391.7,2387.9,2.05895796]
[1769885640929,1.0453253,2391.6,2388.0,15.03534968]
[1769885641120,1.04624046,2391.8,2388.9,0.1024]
[1769885641331,0.1024,2391.7,2388.0,15.03534968]
[1769885641541,1.04624046,2391.8,2389.0,13.98844851]
[1769885641542,0.001,2391.8,2389.0,13.98844851]
[1769885641750,1.51,2393.9,2388.0,1.04690117]
[1769885641751,1.04423374,2394.1,2390.5,13.98844851]
[1769885641904,1.04423374,2394.1,2391.5,13.98844851]
[1769885641905,0.878,2394.1,2391.5,13.98844851]
[1769885642218,13.32854251,2395.4,2391.5,13.98844851]
[1769885642219,4.17427566,2395.7,2392.3,13.98844851]
[1769885642421,1.12635776,2394.9,2392.1,13.98844851]
[1769885642602,1.12635776,2394.9,2391.0,0.1024]
[1769885642808,1.12635776,2394.9,2391.4,13.98844851]
[1769885642809,9.15853379,2394.8,2391.4,13.98844851]
[1769885643016,9.15853379,2394.8,2391.3,1.04545644]
[1769885643017,1.12635776,2394.9,2391.7,13.98844851]
[1769885643406,0.1024,2394.2,2391.2,1.04549065]
[1769885643609,13.32854251,2393.9,2391.2,1.04549584]
[1769885643833,0.878,2393.8,2391.2,1.04549004]
[1769885644254,13.32854251,2393.6,2389.3,2.06258898]
[1769885644550,0.1024,2392.8,2389.7,4.18457784]
[1769885644751,9.15853379,2392.9,2389.3,4.18522356]
[1769885644752,0.2335703,2392.5,2389.3,4.18522356]
[1769885645054,0.2335703,2392.3,2389.3,4.18522356]
[1769885645548,9.15853379,2391.9,2388.1,13.98844851]
[1769885645863,0.2335703,2391.6,2388.1,13.98844851]
[1769885646056,0.2335703,2391.4,2388.2,4.1872226]
[1769885646220,0.2335703,2391.4,2388.9,1.04649472]
[1769885646533,0.2335703,2391.7,2389.2,1.04637516]
[1769885646704,1.0453253,2391.6,2388.5,1.04668201]
[1769885646907,1.0453253,2391.6,2388.6,13.67923037]
[1769885647325,0.2335703,2391.5,2388.6,13.57683037]
[1769885648141,0.2335703,2391.5,2388.5,1.04668201]
[1769885648370,0.2335703,2391.5,2388.4,1.04670504]
[1769885648371,0.2335703,2391.3,2388.4,1.04670504]
[1769885648722,1.04550016,2391.2,2387.8,4.18789649]
[1769885648921,0.2335703,2390.9,2387.8,4.18789649]
[1769885649119,1.04550016,2391.2,2387.8,4.18789649]
[1769885649339,1.04550016,2391.2,2387.9,15.63578833]
[1769885649538,1.04550016,2391.2,2388.1,13.57683037]
[1769885649744,1.04550016,2391.2,2387.8,4.18789649]
[1769885649745,0.2335703,2391.0,2387.8,4.18789649]
[1769885649942,0.1024,2390.9,2387.8,4.18789649]
[1769885650339,0.2335703,2391.1,2387.8,4.18789649]
[1769885650540,0.1024,2390.9,2387.8,4.18789649]
[1769885650735,0.1024,2390.9,2387.6,4.1879945]
[1769885650931,0.1024,2390.9,2387.4,4.18795544]
[1769885650932,0.2335703,2390.7,2387.4,17.76478581]
[1769885651257,0.2335703,2390.7,2387.6,0.1024]
[1769885651552,0.1024,2390.6,2387.5,13.57683037]
[1769885651725,0.2335703,2390.5,2387.5,13.57683037]
[1769885651920,0.1024,2390.4,2387.5,13.57683037]
[1769885652150,0.2335703,2390.3,2387.5,13.57683037]
[1769885652349,0.2335703,2390.1,2387.5,13.57683037]
[1769885652861,0.2335703,2389.9,2387.0,1.04733975]
[1769885653046,0.2335703,2389.9,2387.6,0.0011]
[1769885654554,1.0460251,2390.0,2387.6,0.0011]
[1769885654757,1.0460251,2390.0,2387.6,13.57793037]
[1769885654970,0.877,2389.9,2387.8,14.62381923]
[1769885655274,0.877,2390.2,2388.0,13.57683037]
[1769885655579,0.877,2390.2,2387.7,1.04700527]
[1769885656150,0.3359703,2390.1,2387.6,0.0011]
[1769885656336,0.3359703,2390.1,2387.7,1.04701832]
[1769885656535,13.24126104,2388.7,2385.5,0.0011]
[1769885656734,13.24126104,2388.7,2385.7,0.0011]
[1769885656735,0.3359703,2388.0,2385.7,0.0011]
[1769885656973,1.04694501,2387.9,2385.7,1.04900955]
[1769885657140,0.2335703,2387.6,2385.7,0.0011]
[1769885657548,0.1024,2387.3,2384.8,1.04829084]
[1769885657760,0.1024,2387.3,2384.5,13.57793037]
[1769885657761,0.1024,2387.8,2385.7,1.04786983]
[1769885657938,0.2335703,2387.7,2384.8,13.57683037]
[1769885658137,0.2335703,2387.3,2384.8,14.62512086]
[1769885658433,0.2335703,2387.1,2385.0,1.0482084]
[1769885658662,10.03553379,2387.6,2384.5,0.0011]
[1769885658663,0.1024,2387.0,2384.5,0.0011]
[1769885658854,0.2335703,2386.7,2384.5,0.0011]
[1769885659168,0.2335703,2386.5,2384.5,0.0011]
[1769885659862,0.2335703,2386.1,2382.9,4.19641125]
[1769885660067,0.2335703,2386.1,2383.0,1.0490854]
[1769885660068,13.34366104,2385.8,2383.0,1.0490854]
[1769885660265,13.47483134,2385.7,2383.3,1.0489297]
[1769885660446,0.2335703,2385.5,2383.1,1.0490139]
[1769885660764,0.2335703,2385.5,2382.6,4.19698066]
[1769885661063,1.04804225,2385.4,2382.8,1.04918583]
[1769885661368,0.878,2386.0,2383.7,13.57683037]
[1769885661735,0.878,2386.0,2383.9,13.57683037]
[1769885661940,1.92578359,2386.0,2383.9,13.57683037]
[1769885662152,1.92578359,2386.0,2383.0,13.57683037]
[1769885662358,0.2335703,2385.9,2383.0,13.57683037]
[1769885662557,0.2335703,2385.9,2382.8,1.04918583]
[1769885662776,1.04764698,2386.3,2382.9,13.57683037]
[1769885662966,1.04791046,2385.7,2383.2,13.67923037]
[1769885663279,0.2335703,2385.6,2383.2,13.57683037]
[1769885663479,0.2335703,2385.6,2383.1,1.04905375]
[1769885664087,0.2335703,2385.4,2383.0,1.04909137]
[1769885664457,0.2335703,2385.6,2383.0,1.04909137]
[1769885664770,1.04791046,2385.7,2383.0,1.04909137]
[1769885665079,1.28161255,2385.4,2382.4,14.62619235]
[1769885665283,1.04804225,2385.4,2382.4,14.62619235]
[1769885665484,1.04804225,2385.4,2382.6,13.57683037]
[1769885665662,0.52402113,2385.3,2382.6,13.57683037]
[1769885665862,4.19216902,2385.7,2382.6,13.57683037]
[1769885665863,0.2335703,2385.2,2382.6,13.57683037]
[1769885666163,4.19039385,2386.5,2383.0,13.57683037]
[1769885666164,0.878,2385.1,2383.0,13.57683037]
[1769885666365,0.878,2385.1,2383.2,13.57683037]
[1769885666757,0.878,2385.1,2383.2,13.57793037]
[1769885667658,0.001,2385.8,2383.3,13.57683037]
[1769885667886,1.04769088,2386.2,2383.3,13.57683037]
[1769885668104,13.24126104,2388.8,2385.1,13.57683037]
[1769885668105,0.878,2387.1,2385.1,13.57683037]
[1769885668387,0.878,2387.1,2384.0,13.57683037]
[1769885668761,0.878,2387.1,2383.4,0.1024]
[1769885668762,14.11926104,2387.1,2383.4,0.1024]
[1769885668976,14.28860079,2387.0,2383.6,0.1024]
[1769885669265,14.28860079,2387.0,2383.5,1.0488777]
[1769885669572,13.24126104,2386.6,2383.4,1.04890893]
[1769885669780,13.24126104,2386.6,2383.2,0.0011]
[1769885669981,0.1024,2385.9,2383.2,0.0011]
[1769885670163,0.2335703,2385.6,2383.3,1.04896202]
[1769885670364,0.2335703,2385.4,2383.2,0.0011]
[1769885670564,0.2335703,2385.4,2383.4,1.04890895]
[1769885670786,0.2335703,2385.4,2383.3,1.04892598]
[1769885670986,0.2335703,2385.4,2382.0,0.0011]
[1769885670987,0.1024,2384.9,2382.0,0.0011]
[1769885671292,13.24126104,2384.8,2382.2,1.04944344]
[1769885671482,0.2335703,2384.5,2382.0,0.0011]
[1769885671686,13.47483134,2384.1,2382.0,0.0011]
[1769885671882,0.2335703,2383.7,2381.0,4.19991009]
[1769885672073,0.2335703,2383.7,2380.8,0.0011]
[1769885672074,0.2335703,2383.5,2380.8,0.0011]
[1769885672267,0.3359703,2383.6,2380.8,0.0011]
[1769885672461,0.2335703,2383.6,2380.8,0.0011]
[1769885672803,0.879,2384.0,2381.4,13.57683037]
[1769885672963,1.0487017,2383.9,2381.6,1.04971447]
[1769885674091,0.2335703,2383.8,2380.8,0.0011]
[1769885674270,0.2335703,2383.8,2381.4,1.04978036]
[1769885674470,0.2335703,2383.8,2380.8,0.0011]
[1769885674471,0.2335703,2383.6,2380.8,0.0011]
[1769885674882,0.2335703,2383.6,2380.8,4.20124026]
[1769885675088,0.2335703,2383.4,2380.8,0.0011]
[1769885675784,1.0488777,2383.5,2380.8,0.1035]
[1769885675986,0.52443885,2383.4,2380.8,13.68033037]
[1769885676287,1.04883913,2383.6,2380.8,13.57793037]
[1769885676683,1.04883913,2383.6,2380.9,13.57683037]
[1769885677070,1.0487017,2383.9,2381.1,13.81477086]
[1769885677884,0.1024,2384.8,2381.1,13.81477086]
[1769885677885,0.40198827,2386.1,2382.4,13.71237086]
[1769885678105,0.40198827,2386.1,2382.3,9.14660458]
[1769885678106,0.879,2384.9,2383.0,13.71237086]
[1769885678295,0.879,2384.9,2383.5,13.71237086]
[1769885678803,4.5931031,2386.1,2383.8,13.71237086]
[1769885678804,0.879,2385.4,2383.8,13.71237086]
[1769885679104,0.879,2385.4,2383.9,1.0487017]
[1769885679687,0.424952,2385.4,2384.1,13.71237086]
[1769885680403,0.424952,2385.4,2383.9,1.0487017]
[1769885680809,1.47301983,2385.4,2382.2,13.71237086]
[1769885681011,1.47301983,2385.4,2382.7,4.19685353]
[1769885681312,0.424952,2385.4,2382.9,12.94507204]
[1769885681611,0.424952,2385.4,2382.8,5.24350852]
[1769885681612,0.879,2385.6,2383.1,12.94507204]
[1769885681989,0.879,2385.6,2383.6,13.04747204]
[1769885682189,0.879,2385.6,2384.3,12.94507204]
[1769885682392,0.879,2387.2,2384.7,12.94507204]
[1769885682911,0.879,2387.2,2384.9,12.94507204]
[1769885683216,1.92625631,2387.2,2384.9,1.04825574]
[1769885683514,1.92625631,2387.2,2383.7,13.04747204]
[1769885683515,0.2335703,2387.1,2383.7,13.04747204]
[1769885683688,1.92625631,2387.2,2385.0,1.04821802]
[1769885683883,0.2335703,2387.0,2384.9,1.04824405]
[1769885684082,0.61152644,2387.1,2384.4,12.94507204]
[1769885684324,1.92625631,2387.2,2384.9,1.04822752]
[1769885684635,1.92625523,2387.2,2385.0,12.94507204]
[1769885684790,1.92628256,2387.2,2385.1,5.24350852]
[1769885684988,1.92628256,2387.2,2385.2,1.04813013]
[1769885685283,1.92628256,2387.2,2385.1,6.29164151]
[1769885685484,0.2335703,2387.1,2384.6,4.19356372]
[1769885685684,0.2335703,2387.1,2384.3,5.24350852]
[1769885685685,0.63488609,2387.1,2384.3,5.24350852]
[1769885685883,0.63488609,2387.1,2384.9,4.19302309]
[1769885686104,0.2335703,2387.0,2385.0,1.04818395]
[1769885686413,0.2335703,2387.0,2384.9,1.0482273]
[1769885686620,0.5130442,2387.0,2384.9,1.0482273]
[1769885686807,0.5130442,2387.0,2385.0,5.24350852]
[1769885687015,0.2335703,2386.8,2385.0,5.24350852]
[1769885687189,0.2335703,2386.8,2383.4,12.94507204]
[1769885687385,0.2335703,2386.6,2384.0,1.0486479]
[1769885687582,0.2335703,2386.6,2384.1,1.04860945]
[1769885687887,0.2335703,2386.6,2383.0,6.25769324]
[1769885687888,0.2335703,2386.2,2383.9,5.24350852]
[1769885688087,0.2335703,2386.2,2384.0,5.24350852]
[1769885688404,0.3359703,2386.4,2384.0,5.24350852]
[1769885689011,1.0474714,2386.7,2384.1,1.04861373]
[1769885689312,1.0474714,2386.7,2384.3,12.94507204]
[1769885689511,1.0474714,2386.7,2384.5,12.94507204]
[1769885689704,4.18935902,2387.1,2384.5,12.94507204]
[1769885689901,4.18935902,2387.1,2384.1,1.15101373]
[1769885689902,4.18935902,2387.1,2384.6,5.24350852]
[1769885690109,4.18935902,2387.1,2384.1,1.04861373]
[1769885690110,0.1024,2387.0,2384.3,5.24350852]
[1769885690414,22.55634255,2386.6,2384.3,5.24350852]
[1769885690612,0.2335703,2386.3,2384.3,5.24350852]
[1769885690834,0.1024,2386.0,2383.5,1.04887554]
[1769885690987,0.1024,2386.0,2383.0,5.24350852]
[1769885690988,13.64330827,2385.3,2383.0,5.24350852]
[1769885691190,0.2335703,2385.1,2383.0,1.04908087]
[1769885691398,0.3359703,2385.6,2383.1,5.24350852]
[1769885691595,0.2335703,2385.6,2383.1,5.24350852]
[1769885691786,0.54731226,2385.6,2383.1,5.24350852]
[1769885692005,1.04791046,2385.7,2383.2,12.94507204]
[1769885692191,0.2335703,2385.6,2383.2,12.94507204]
[1769885692515,0.2335703,2385.6,2383.3,5.24350852]
[1769885692715,9.38017488,2385.4,2382.4,12.94507204]
[1769885692896,0.2335703,2385.4,2382.5,5.24350852]
[1769885693100,0.2335703,2385.2,2382.6,1.0492739]
[1769885693901,9.14660458,2384.5,2382.7,5.24350852]
[1769885694115,14.52230827,2384.4,2381.7,5.24350852]
[1769885694411,14.52230827,2384.4,2381.6,1.04970468]
[1769885694720,14.52230827,2384.4,2381.4,9.44271665]
[1769885694721,0.2335703,2384.2,2381.4,5.24350852]
[1769885695035,1.04861373,2384.1,2381.5,1.04975855]
[1769885695198,1.04861373,2384.1,2381.6,5.24350852]
[1769885695516,0.2335703,2384.0,2381.6,5.24350852]
[1769885695721,9.14660458,2383.8,2381.6,5.24350852]
[1769885695936,0.2335703,2383.6,2381.6,5.24350852]
[1769885696697,0.2335703,2383.4,2381.3,0.0011]
[1769885696897,0.2335703,2383.2,2381.4,1.04980007]
[1769885697119,1.92799309,2383.3,2381.3,12.94617204]
[1769885697800,0.879,2383.3,2381.3,12.94617204]
[1769885698394,0.879,2383.3,2381.5,12.94507204]
[1769885698638,0.879,2383.3,2381.3,0.1035]
[1769885698639,1.92799565,2383.3,2381.3,0.0011]
[1769885699804,0.2335703,2383.2,2381.3,0.0011]
[1769885700008,1.92799565,2383.3,2381.3,0.0011]
[1769885700210,0.84595615,2383.2,2381.3,0.0011]
[1769885700433,0.61238585,2383.2,2381.3,12.94617204]
[1769885700598,2.2331174,2383.6,2381.3,12.94617204]
[1769885701028,2.2331174,2383.6,2381.3,0.0011]
[1769885701029,9.48257488,2383.5,2381.3,0.0011]